Cogmind - Beta 14 @@@ ROGUE MODE // 2025.03.24 @ 18:39:22 // Winter2019/RPGLIKE Player: Lava Result: Destroyed by H-77 Assassin with Coil Gun Performance ------------- Evolutions (7) 3500 Regions Visited (12) 2400 Robots Destroyed (214) 1070 Value Destroyed (8625) 8625 Prototype IDs (27) 540 Alien Tech Used (0) 0 Bonus (524) 524 TOTAL SCORE: 16659 Bonus ------- High Alert Combat Kills 526 Follower Combat Kills 48 Aligned with FarCom 300 Friendly Fire -350 Cogmind --------- Core Integrity 0/3100 Matter 149/300 Energy 310/310 System Corruption 3% Temperature Cool (9) Movement Treading (240) Ox1 Location -3/Research Parts ------- > --- POWER (1) -------- Reinforced Fission Core > --- PROPULSION (2) --- Medium Treads > --- UTILITY (4) ------ Improved Targeting Computer Improved Power Shielding Hacking Suite Hacking Suite > --- WEAPON (3) ------- Plasma Rifle Helical Railgun Rocket Launcher > --- INVENTORY (3) ---- Protomatter-16 Improved Titanium Leg Heavy Mace Peak State ------------ > --- POWER ------------ Reinforced Fission Core > --- PROPULSION ------- Armored Leg Myomer Leg > --- UTILITY ---------- Advanced Signal Interpreter Hardened Medium Armor Plating Hacking Suite Hacking Suite > --- WEAPON ----------- YOLO Cannon Precision Assault Rifle > --- INVENTORY -------- Improved Titanium Leg Rocket Launcher Heavy Mace [Rating: 57] Favorites ----------- Power Reinforced Fission Core Engine Deuterium Engine Power Core Reinforced Fission Core Propulsion Light Treads Treads Light Treads Leg Titanium Leg Flight Unit Improved Cesium-ion Thruster Utility Hacking Suite Processor Signal Interpreter Hackware Hacking Suite Protection Hardened Medium Armor Plating Weapon YOLO Cannon Energy Gun Plasma Rifle Energy Cannon YOLO Cannon Ballistic Gun Precision Assault Rifle Launcher Rocket Launcher Impact Weapon Heavy Mace Build | -11 -10 -10 -10 -9 -8 -7 -6 -5 -5 -5 -4 -3 ------- Run | Yrd Mat Min Exi Min Mat Fac Fac Fac Upp Upp Fac Res Slots Evolved 6 | 3 . . . . 3 . . . . . . . Power . | . . . . . . . . . . . . . Propulsion 1 | 1 . . . . . . . . . . . . Utility 3 | 1 . . . . 2 . . . . . . . Weapon 2 | 1 . . . . 1 . . . . . . . Parts Attached 56 | 5 7 5 1 . 7 6 1 3 1 2 8 10 Power 6 | 1 . 1 . . 2 . . 1 . . 1 . Engine 2 | 1 . . . . 1 . . . . . . . Core 4 | . . 1 . . 1 . . 1 . . 1 . Reactor . | . . . . . . . . . . . . . Propulsion 19 | 2 . . . . 3 3 1 2 . . 4 4 Treads 6 | 2 . . . . . . . . . . . 4 Leg 12 | . . . . . 3 2 1 2 . . 4 . Wheel . | . . . . . . . . . . . . . Hover . | . . . . . . . . . . . . . Flight 1 | . . . . . . 1 . . . . . . Utility 12 | . 3 . . . 1 2 . . 1 . 2 3 Device . | . . . . . . . . . . . . . Storage . | . . . . . . . . . . . . . Processor 3 | . 1 . . . . . . . . . . 2 Hackware 2 | . 1 . . . . 1 . . . . . . Protection 7 | . 1 . . . 1 1 . . 1 . 2 1 Artifact . | . . . . . . . . . . . . . Weapon 19 | 2 4 4 1 . 1 1 . . . 2 1 3 Energy Gun 2 | 1 . . . . . . . . . . . 1 Energy Cannon 1 | . . . 1 . . . . . . . . . Ballistic Gun 12 | 1 4 2 . . 1 1 . . . 1 1 1 Ballistic Cannon . | . . . . . . . . . . . . . Launcher 3 | . . 2 . . . . . . . . . 1 Special Weapon . | . . . . . . . . . . . . . Impact Weapon 1 | . . . . . . . . . . 1 . . Slashing Weapon . | . . . . . . . . . . . . . Piercing Weapon . | . . . . . . . . . . . . . Special Melee Weapon . | . . . . . . . . . . . . . Unidentified Prototypes 4 | . 1 . . . . 2 . . . . . 1 Parts Lost 5 | . . . . . . . . . . . . 5 Power . | . . . . . . . . . . . . . Propulsion 1 | . . . . . . . . . . . . 1 Utility 2 | . . . . . . . . . . . . 2 Weapon 2 | . . . . . . . . . . . . 2 Highest Loss Streak 4 | . . . . . . . . . . . . 4 To Critical Strikes . | . . . . . . . . . . . . . Average Slot Usage (%) 88 | . 94 100 93 85 81 85 90 89 90 90 89 86 Engine 5 | . 14 11 . . 7 10 10 8 . . . . Core 5 | . . 2 14 14 3 . . . 10 10 9 10 Treads 8 | . 28 28 28 28 . . . . . . . 11 Leg 13 | . . . . . 20 20 20 20 20 20 19 5 Processor 11 | . 12 14 14 14 10 10 10 10 10 10 10 7 Hackware 14 | . 5 14 14 14 10 15 20 20 20 20 20 20 Protection 7 | . 4 . . . 7 10 10 10 10 10 9 10 Energy Cannon 8 | . . . 5 14 10 10 10 10 10 10 10 6 Ballistic Gun 12 | . 27 27 16 . 9 10 10 10 10 9 9 8 Peak Build Rating 57 | 5 13 15 29 29 41 45 46 50 50 50 53 57 Average Rating 36 | 3 8 13 20 29 39 43 45 47 49 49 52 47 On Entrance 32 | . 5 13 15 29 29 41 45 46 50 50 50 53 Naked Turns . | . . . . . . . . . . . . . Heaviest Build 51 | 6 9 11 23 23 45 46 39 51 51 51 51 51 Greatest Support 63 | 40 40 40 40 40 40 37 38 38 36 36 41 63 Greatest Overweight (x) 2 | . . . . . 2 2 1 1 1 1 2 1 Average Overweight (x) . | . . . . . . 1 1 . 1 1 . . Largest Inventory Capacity 3 | 2 2 2 2 2 3 3 3 3 3 3 3 3 Average Capacity 2 | 2 2 2 2 2 2 3 3 3 3 3 3 3 Most Carried 3 | 2 2 2 2 2 3 3 3 3 3 2 3 3 Average Carried 2 | . 1 2 2 2 2 2 3 3 2 2 2 2 Final Capacity 3 | 2 2 2 2 2 3 3 3 3 3 3 3 3 Final Carried 3 | . 2 2 2 2 3 3 3 3 2 2 3 3 Class Distribution -------------------- 30% | Skirmisher 25% | Hacker-Skirmisher 22% | Mutant 19% | Hacker-Gunner Dominant Class ---------------- Mutant | -10/Materials Mutant | -10/Mines Mutant | -10/Exiles Skirmisher | -9/Mines Skirmisher | -8/Materials Hacker-Skirmisher | -7/Factory Hacker-Skirmisher | -6/Factory Hacker-Skirmisher | -5/Factory Hacker-Gunner | -5/Upper Caves Hacker-Gunner | -5/Upper Caves Hacker-Skirmisher | -4/Factory Hacker-Skirmisher | -3/Research Resources | -11 -10 -10 -10 -9 -8 -7 -6 -5 -5 -5 -4 -3 ----------- Run | Yrd Mat Min Exi Min Mat Fac Fac Fac Upp Upp Fac Res Matter Collected 1681 | 250 494 138 . 40 247 155 14 10 34 32 84 183 Remotely . | . . . . . . . . . . . . . Salvage Created 6023 | . 545 196 408 . 1028 945 228 1232 447 138 354 502 Parts 378 | . 50 11 36 . 65 45 13 50 20 17 26 45 Haulers Intercepted 2 | . 1 . . . 1 . . . . . . . Recyclers Shooed . | . . . . . . . . . . . . . Parts Field Recycled . | . . . . . . . . . . . . . Retrieved Matter . | . . . . . . . . . . . . . Parts Self-Destructed 28 | . . . . . . . . . 14 14 . . Prevented . | . . . . . . . . . . . . . Kills | -11 -10 -10 -10 -9 -8 -7 -6 -5 -5 -5 -4 -3 ------- Run | Yrd Mat Min Exi Min Mat Fac Fac Fac Upp Upp Fac Res Combat Hostiles Destroyed 156 | . 20 7 20 . 28 12 5 13 22 5 8 16 Guns 27 | . 19 4 . . . 1 . . 1 . . 2 Cannons 54 | . . . 8 . 11 4 3 8 10 3 4 3 AOE 64 | . 1 3 12 . 10 6 2 4 10 2 4 10 Classes Destroyed 18 | . 5 . 2 . 7 1 . 3 . . . . Worker 13 | . . . . . . 4 . 1 . . 3 5 Builder 11 | . . . . . 1 3 . 6 . . 1 . Tunneler 5 | . . . . . 2 . 1 . . . . 2 Hauler 2 | . 1 . . . 1 . . . . . . . Recycler 7 | . . . . . 3 3 . 1 . . . . Carrier 1 | . . . . . . . . 1 . . . . Mechanic 2 | . . . . . . . . 2 . . . . Operator 6 | . 3 . . . 1 1 . . . . . 1 Watcher 11 | . 3 . . . 4 2 . . . . 2 . Swarmer 23 | . 7 3 . . 4 . . . 6 . . 3 Grunt 68 | . 13 4 9 . 14 6 . 7 10 1 . 4 Brawler 4 | . . . . . . . . 3 1 . . . Duelist 3 | . . . . . 1 . . . 2 . . . Sentry 12 | . . . . . 6 1 . 1 2 . 1 1 Specialist 2 | . . . . . 2 . . . . . . . Hunter 22 | . . . 7 . . 2 4 1 . 4 2 2 Programmer 18 | . . . 4 . . 2 . . 1 . 5 6 Heavy 4 | . . . . . 1 1 1 1 . . . . Best Kill Streak 20 | . 5 3 20 . 6 4 4 10 9 3 6 7 Combat Bots Only 20 | . 4 3 20 . 6 4 3 5 9 3 2 5 Max Kills in Single Turn 5 | . 2 3 3 . 3 4 2 4 5 2 4 2 Gunslinging 1 | . 1 . . . . . . . . . . . Exploded 4 | . 1 3 2 . 2 2 1 2 4 1 1 2 Melee . | . . . . . . . . . . . . . Uniques/NPCs Destroyed . | . . . . . . . . . . . . . Combat | -11 -10 -10 -10 -9 -8 -7 -6 -5 -5 -5 -4 -3 -------- Run | Yrd Mat Min Exi Min Mat Fac Fac Fac Upp Upp Fac Res Hostile Shots Fired 510 | . 97 21 93 . 56 34 21 39 47 7 18 77 Missed 171 | . 21 6 26 . 19 10 11 16 15 3 6 38 Damage Taken 5672 | . 868 241 1042 35 681 419 206 433 525 71 236 915 Core 4150 | . 663 190 855 28 432 303 153 318 323 39 170 676 Absorbed by Shields . | . . . . . . . . . . . . . Redirected to Core 3201 | . 536 180 644 28 296 219 153 229 296 39 134 447 Redirected to Shielding 66 | . 34 . . . . . . . . . . 32 Ignored by Resistances 358 | . . . . . 56 40 . 99 79 8 . 76 Regen/Repaired (Parts) 7 | . . . . . 7 . . . . . . . Core Remaining (%) 38 | 100 . . . 30 25 28 21 . . 34 29 . Volleys Fired 265 | . 72 12 14 . 51 35 8 14 19 3 11 26 Largest 3 | . 2 2 1 . 2 2 1 1 1 2 2 3 Hottest 146 | . 46 56 100 . 123 128 100 100 100 128 128 146 Shots Fired 404 | . 144 24 14 1 76 38 8 14 19 6 12 48 Gun 258 | . 144 22 . . 43 19 1 . 1 3 1 24 Cannon 129 | . . . 14 1 33 19 7 14 18 3 11 9 Launcher 17 | . . 2 . . . . . . . . . 15 Special . | . . . . . . . . . . . . . Kinetic 247 | . 144 22 . . 43 19 1 . 1 3 1 13 Thermal 140 | . . . 14 1 33 19 7 14 18 3 11 20 Explosive 17 | . . 2 . . . . . . . . . 15 Electromagnetic . | . . . . . . . . . . . . . Robot Hit Streak 23 | . 14 21 23 2 16 4 5 13 7 7 8 22 Robot Miss Streak 4 | . 3 . 2 . 4 3 2 1 1 . 1 1 Penetration Max 1 | . . . . . . . . . . . . 1 Secondary Targets 1 | . 1 . . . . . . . . . . . Max Gunslinging Chain 1 | . 1 . . . . . . . . . . . Shots Hit Robots 267 | . 102 17 9 1 37 20 5 12 15 3 7 39 Core Hits 247 | . 46 11 22 . 32 24 6 26 23 2 12 43 Critical Kills 11 | . . . . . 7 1 . 1 1 . . 1 Critical Parts Destroyed 2 | . . . . . 1 . . . . . . 1 Critical Strikes 13 | . . . . . 8 1 . 1 1 . . 2 Meltdown 11 | . . . . . 7 1 . 1 1 . . 1 Destroy 2 | . . . . . 1 . . . . . . 1 Melee Attacks 1 | . . . . . . . . . . 1 . . Impact 1 | . . . . . . . . . . 1 . . Slashing . | . . . . . . . . . . . . . Piercing . | . . . . . . . . . . . . . Sneak Attacks . | . . . . . . . . . . . . . Combat Hostiles . | . . . . . . . . . . . . . Follow-up Attacks . | . . . . . . . . . . . . . Damage Inflicted 29643 | . 1381 393 2795 292 5454 3522 1451 3690 4060 643 2725 3237 Guns 2572 | . 1372 238 . . 232 161 . . 18 . . 551 Cannons 12406 | . . . 1120 . 2964 1429 704 1609 1945 393 1288 954 Explosions 14633 | . . 155 1675 292 2242 1925 747 2081 2097 250 1437 1732 Melee . | . . . . . . . . . . . . . Ramming 32 | . 9 . . . 16 7 . . . . . . Kinetic 2319 | . 1372 238 . . 232 161 . . 18 . . 298 Thermal 25646 | . . . 2795 292 5206 3224 1451 3690 4042 643 2725 1578 Explosive 1646 | . . 155 . . . 130 . . . . . 1361 Electromagnetic . | . . . . . . . . . . . . . Impact . | . . . . . . . . . . . . . Slashing . | . . . . . . . . . . . . . Piercing . | . . . . . . . . . . . . . Highest Corruption 3 | . . . 2 2 1 3 . . . . 1 3 Average Corruption 1 | . . . 1 2 1 1 . . . . 1 1 Corruption Purged . | . . . . . . . . . . . . . Corruption Blocked . | . . . . . . . . . . . . . Effects 37 | . . . 1 11 5 15 . . . . . 5 Message Errors 4 | . . . . 2 . 2 . . . . . . Matter Fused 10 | . . . . 5 2 2 . . . . . 1 Heat Flow Errors 3 | . . . . . 1 2 . . . . . . Energy Discharges 4 | . . . . 2 1 1 . . . . . . Parts Fused 1 | . . . . . 1 . . . . . . . Data Loss (minor) 7 | . . . . 1 . 4 . . . . . 2 Data Loss (major) 3 | . . . 1 . . 1 . . . . . 1 Misfires 3 | . . . . 1 . 1 . . . . . 1 Alerts 2 | . . . . . . 2 . . . . . . Overload Shots . | . . . . . . . . . . . . . Overflow Damage 4301 | . . . 310 14 841 801 138 239 351 239 871 497 Projectiles 2999 | . . . 205 . 677 528 21 47 175 209 676 461 Explosions 1302 | . . . 105 14 164 273 117 192 176 30 195 36 Melee . | . . . . . . . . . . . . . Knockbacks 1 | . . . . . 1 . . . . . . . Impact 1 | . . . . . 1 . . . . . . . Kinetic . | . . . . . . . . . . . . . Secondary . | . . . . . . . . . . . . . Self-Inflicted Damage 586 | . . 56 . 35 119 113 . 70 52 . . 141 Shots 14 | . . 2 . 1 3 3 . 1 1 . . 3 Rammed 2 | . 2 . . . . . . . . . . . Targets Rammed 8 | . 2 . . . 5 1 . . . . . . Kicked 6 | . . . . . 5 1 . . . . . . Crushed . | . . . . . . . . . . . . . Highest Temperature 395 | . 5 10 148 54 395 111 . . . . . . Average Temperature 73 | . 1 4 45 32 85 56 . . . . . . Received Heat Transfer 816 | . 261 90 42 . 99 21 . 126 99 18 . 60 Effects 3 | . . . . . 3 . . . . . . . Shutdowns 1 | . . . . . 1 . . . . . . . Interference 1 | . . . . . 1 . . . . . . . Short Circuit 1 | . . . . . 1 . . . . . . . Siege Activations . | . . . . . . . . . . . . . Robots Corrupted . | . . . . . . . . . . . . . Combat Hostiles . | . . . . . . . . . . . . . Parts Fried . | . . . . . . . . . . . . . Impact Corruptions . | . . . . . . . . . . . . . Robots Melted 11 | . . . . . 7 1 . 1 1 . . 1 Combat Hostiles 10 | . . . . . 7 1 . 1 . . . 1 Parts Melted 32 | . . . 3 . 8 5 1 9 2 . 4 . Heat Transferred 20720 | . . . 2640 400 4480 2360 1040 3200 3360 400 1670 1170 Parts Sabotaged 2 | . . . . . . . . 2 . . . . Parts Stolen . | . . . . . . . . . . . . . Parts Stripped . | . . . . . . . . . . . . . Power Chain Reactions . | . . . . . . . . . . . . . Alert | -11 -10 -10 -10 -9 -8 -7 -6 -5 -5 -5 -4 -3 ------- Run | Yrd Mat Min Exi Min Mat Fac Fac Fac Upp Upp Fac Res Peak Influence 741 | . 327 261 . 8 540 741 560 631 . . 366 676 Initial 362 | . . 76 . . . 217 362 274 . . 154 187 Average 268 | . 165 172 . 2 365 360 427 406 . . 207 343 Maximum Alert Level 3 | . 1 1 . . 2 3 2 2 . . 1 2 Low Security (%) 36 | 100 73 60 . 100 7 4 . . . . 66 8 Level 1 43 | . 26 39 . . 50 62 54 54 . . 33 74 Level 2 19 | . . . . . 42 24 45 45 . . . 17 Level 3 1 | . . . . . . 8 . . . . . . Level 4 . | . . . . . . . . . . . . . Level 5 . | . . . . . . . . . . . . . High Security . | . . . . . . . . . . . . . Max Security . | . . . . . . . . . . . . . Squads Dispatched 29 | . 7 . . . 4 3 2 6 . . 2 5 Investigation 4 | . 3 . . . . . . . . . . 1 Extermination 6 | . . . . . . 1 . 1 . . 2 2 Reinforcement 15 | . 4 . . . 3 2 2 2 . . . 2 Assault 4 | . . . . . 1 . . 3 . . . . Garrison . | . . . . . . . . . . . . . Intercept . | . . . . . . . . . . . . . Searches Triggered . | . . . . . . . . . . . . . Construction Impeded 3 | . . . . . 1 . . 1 . . . 1 Haulers Reinforced 1 | . . . . . . 1 . . . . . . Active Scanning Responses . | . . . . . . . . . . . . . Cargo Convoy Interrupts . | . . . . . . . . . . . . . Stealth | -11 -10 -10 -10 -9 -8 -7 -6 -5 -5 -5 -4 -3 --------- Run | Yrd Mat Min Exi Min Mat Fac Fac Fac Upp Upp Fac Res Distress Signals 5 | . 1 . . . 2 . . 1 . . 1 . Communications Jammed . | . . . . . . . . . . . . . Distress Signals . | . . . . . . . . . . . . . Times Spotted 186 | . 38 7 19 . 32 13 5 19 15 5 10 23 Peak Tracking Total 10 | . 7 3 10 . 5 3 3 6 8 3 3 7 Tactical Retreats 4 | . 2 . 1 . 1 . . . . . . . Traps | -11 -10 -10 -10 -9 -8 -7 -6 -5 -5 -5 -4 -3 ------- Run | Yrd Mat Min Exi Min Mat Fac Fac Fac Upp Upp Fac Res Traps Triggered 8 | . 3 . . . . 1 . . . . 3 1 Indirectly . | . . . . . . . . . . . . . Trap Hack Attempts . | . . . . . . . . . . . . . Triggered . | . . . . . . . . . . . . . Disarmed . | . . . . . . . . . . . . . Reprogrammed 6 | . . . . . 6 . . . . . . . Reused . | . . . . . . . . . . . . . Traps Extracted . | . . . . . . . . . . . . . Installed . | . . . . . . . . . . . . . Triggered 2 | . . . . . . . . . . 2 . . Machines | -11 -10 -10 -10 -9 -8 -7 -6 -5 -5 -5 -4 -3 ---------- Run | Yrd Mat Min Exi Min Mat Fac Fac Fac Upp Upp Fac Res Machines Disabled 46 | . 1 1 4 . 8 23 . . 2 1 3 3 Max in Single Turn 6 | . 1 1 1 . 2 6 . . 1 1 3 2 Garrison Access 1 | . . . . . . . . . . . . 1 Machines Repaired . | . . . . . . . . . . . . . Machines Dismantled . | . . . . . . . . . . . . . Machines Sabotaged . | . . . . . . . . . . . . . Overloaded Fab Kills . | . . . . . . . . . . . . . Hacking | -11 -10 -10 -10 -9 -8 -7 -6 -5 -5 -5 -4 -3 --------- Run | Yrd Mat Min Exi Min Mat Fac Fac Fac Upp Upp Fac Res Machines Accessed 25 | . 3 2 2 . 10 1 1 2 . . 1 3 Terminals 19 | . 3 1 . . 8 1 1 2 . . 1 2 Fabricators . | . . . . . . . . . . . . . Repair Stations 1 | . . . . . 1 . . . . . . . Recycling Units . | . . . . . . . . . . . . . Scanalyzers 1 | . . . . . 1 . . . . . . . Garrison Access 1 | . . . . . . . . . . . . 1 Total Hacks 52 | . 6 2 2 . 30 1 2 3 . . 1 5 Successful 31 | . 2 2 2 . 18 1 . 2 . . 1 3 Failed 21 | . 4 . . . 12 . 2 1 . . . 2 Catastrophic 4 | . 1 . . . 2 . 1 . . . . . Database Lockouts . | . . . . . . . . . . . . . Manual 21 | . 5 . 1 . 13 . 2 . . . . . Terminals 44 | . 6 1 . . 26 1 2 3 . . 1 4 Fabricators . | . . . . . . . . . . . . . Repair Stations 2 | . . . . . 2 . . . . . . . Recycling Units . | . . . . . . . . . . . . . Scanalyzers 2 | . . . . . 2 . . . . . . . Garrison Access 1 | . . . . . . . . . . . . 1 Terminal Hacks 26 | . 2 2 2 . 14 1 . 2 . . 1 2 Record 1 | . . . 1 . . . . . . . . . Part Schematic 1 | . . . . . . . . . . . . 1 Open Door 1 | . . 1 . . . . . . . . . . Open DSF 3 | . . . . . . 1 . 1 . . 1 . Terminal Index 3 | . 1 . . . 2 . . . . . . . Alert Level 1 | . . . . . 1 . . . . . . . Unreport Threat 2 | . . . . . 2 . . . . . . . Locate Traps 1 | . . . . . 1 . . . . . . . Reprogram Traps 2 | . . . . . 2 . . . . . . . Dispatch Records 2 | . . . . . 1 . . . . . . 1 Security Status 1 | . . . . . 1 . . . . . . . Reinforcement Status 1 | . . . . . 1 . . . . . . . Hauler Manifests 2 | . 1 . . . 1 . . . . . . . Registered Prototypes 1 | . . . . . 1 . . . . . . . Zone Layout 3 | . . 1 . . 1 . . 1 . . . . Derelict Proto ID Bank 1 | . . . 1 . . . . . . . . . Fabricator Hacks . | . . . . . . . . . . . . . Repair Station Hacks 2 | . . . . . 2 . . . . . . . Scan Component 1 | . . . . . 1 . . . . . . . Repair 1 | . . . . . 1 . . . . . . . Recycling Unit Hacks . | . . . . . . . . . . . . . Scanalyzer 2 | . . . . . 2 . . . . . . . Insert Component 1 | . . . . . 1 . . . . . . . Analyze 1 | . . . . . 1 . . . . . . . Garrison Access Hacks 1 | . . . . . . . . . . . . 1 Seal Access 1 | . . . . . . . . . . . . 1 Unauthorized Hacks . | . . . . . . . . . . . . . Terminals . | . . . . . . . . . . . . . Fabricators . | . . . . . . . . . . . . . Repair Stations . | . . . . . . . . . . . . . Recycling Units . | . . . . . . . . . . . . . Scanalyzers . | . . . . . . . . . . . . . Garrison Access . | . . . . . . . . . . . . . Data Cores Recovered . | . . . . . . . . . . . . . Used . | . . . . . . . . . . . . . Hacking Detections 16 | . 3 . . . 9 . 1 1 . . . 2 Full Trace Events . | . . . . . . . . . . . . . Feedback Events . | . . . . . . . . . . . . . Feedback Blocked . | . . . . . . . . . . . . . Robot Schematics Acquired . | . . . . . . . . . . . . . Robots Built . | . . . . . . . . . . . . . Authchips . | . . . . . . . . . . . . . Time . | . . . . . . . . . . . . . Total Robot Build Rating . | . . . . . . . . . . . . . Part Schematics Acquired 2 | . . . . . 1 . . . . . . 1 Parts Built . | . . . . . . . . . . . . . Authchips . | . . . . . . . . . . . . . Time . | . . . . . . . . . . . . . Total Part Build Rating . | . . . . . . . . . . . . . Parts Repaired 1 | . . . . . 1 . . . . . . . Time 53 | . . . . . 53 . . . . . . . Parts Recycled . | . . . . . . . . . . . . . Recycled Matter . | . . . . . . . . . . . . . Retrieved Matter . | . . . . . . . . . . . . . Retrieved Components . | . . . . . . . . . . . . . Parts Scanalyzed 1 | . . . . . 1 . . . . . . . Part Schematics Acquired 1 | . . . . . 1 . . . . . . . Parts Damaged . | . . . . . . . . . . . . . Bothacking | -11 -10 -10 -10 -9 -8 -7 -6 -5 -5 -5 -4 -3 ------------ Run | Yrd Mat Min Exi Min Mat Fac Fac Fac Upp Upp Fac Res Used RIF Installer . | . . . . . . . . . . . . . Robots Hacked . | . . . . . . . . . . . . . Non-combat . | . . . . . . . . . . . . . Combat . | . . . . . . . . . . . . . Robot Hacks Applied . | . . . . . . . . . . . . . Relay Couplers Released . | . . . . . . . . . . . . . Fabnet Peak Effective % . | . . . . . . . . . . . . . Robots Rewired . | . . . . . . . . . . . . . Allies Hacked . | . . . . . . . . . . . . . Hacks Repelled . | . . . . . . . . . . . . . Allies | -11 -10 -10 -10 -9 -8 -7 -6 -5 -5 -5 -4 -3 -------- Run | Yrd Mat Min Exi Min Mat Fac Fac Fac Upp Upp Fac Res Total Allies 4 | . . . . 4 . . . . . . . . Largest Group 4 | . . . . 4 3 . . . . . . . Highest-Rated Group 68 | . . . . 68 37 . . . . . . . Highest-Rated Ally 31 | . . . . 31 16 . . . . . . . Total Orders . | . . . . . . . . . . . . . Ally Attacks 30 | . . . . . 30 . . . . . . . Total Damage 254 | . . . . . 254 . . . . . . . Kills 4 | . . . . . 4 . . . . . . . Allies Corrupted . | . . . . . . . . . . . . . Allies Melted . | . . . . . . . . . . . . . Intel | -11 -10 -10 -10 -9 -8 -7 -6 -5 -5 -5 -4 -3 ------- Run | Yrd Mat Min Exi Min Mat Fac Fac Fac Upp Upp Fac Res Robot Analysis Total . | . . . . . . . . . . . . . Derelict Logs Recovered 5 | . . 1 . 1 . . . . 1 2 . . Drone Launches . | . . . . . . . . . . . . . Drone Recoveries . | . . . . . . . . . . . . . Exploration | -11 -10 -10 -10 -9 -8 -7 -6 -5 -5 -5 -4 -3 ------------- Run | Yrd Mat Min Exi Min Mat Fac Fac Fac Upp Upp Fac Res Turns Passed 11181 | 68 1510 442 512 782 2081 1382 206 509 1470 683 878 658 Spaces Moved 5456 | 43 749 243 284 461 956 629 90 229 711 338 430 293 Core 7 | 7 . . . . . . . . . . . . Treads 1986 | 36 749 243 284 461 11 . . . . . . 202 Legs 3463 | . . . . . 945 629 90 229 711 338 430 91 Wheels . | . . . . . . . . . . . . . Hover . | . . . . . . . . . . . . . Flight . | . . . . . . . . . . . . . Fastest Speed 50 | 50 160 160 160 160 130 200 195 125 195 195 120 152 Average Speed 181 | 142 160 160 160 160 188 200 195 194 195 195 189 186 Slowest Speed 270 | 160 160 160 160 160 270 270 200 195 195 195 260 240 Overloaded Moves . | . . . . . . . . . . . . . Propulsion Burnouts . | . . . . . . . . . . . . . Robots Hopped . | . . . . . . . . . . . . . Cave-ins Triggered . | . . . . . . . . . . . . . Exploration Rate (%) 42 | 4 86 49 61 94 80 24 4 5 85 43 11 11 Regions Visited 12 Branch Regions 5 Pre-discovered Areas . | . . . . . . . . . . . . . Known Exits Taken 11 | . 1 1 1 1 1 1 1 1 1 1 1 . Unknown Exits Taken 1 | 1 . . . . . . . . . . . . Scrap Searched 6 | . . 1 . 2 . . . . 2 1 . . Spaces Dug 6 | . . . . . . 6 . . . . . . Terrain Destroyed 1224 | . . 12 37 12 359 225 62 82 124 39 159 113 Melee . | . . . . . . . . . . . . . Projectile 29 | . . . . 1 6 7 1 1 3 . 3 7 AOE 1195 | . . 12 37 11 353 218 61 81 121 39 156 106 Terrain Rammed . | . . . . . . . . . . . . . Walls Destroyed . | . . . . . . . . . . . . . Machines Disabled . | . . . . . . . . . . . . . Actions | -11 -10 -10 -10 -9 -8 -7 -6 -5 -5 -5 -4 -3 --------- Run | Yrd Mat Min Exi Min Mat Fac Fac Fac Upp Upp Fac Res Total 6066 | 49 919 271 300 506 1103 682 98 250 741 348 454 345 Wait 175 | . 52 5 . 46 60 6 . . . . 5 1 Move 5444 | 42 748 242 283 460 955 628 89 228 710 337 429 293 Hop . | . . . . . . . . . . . . . Pick Up 17 | 2 5 . . . 5 1 . . . . 1 3 Fast Attach 26 | 3 3 . 1 . 3 4 . 2 . . 7 3 Attach 8 | 2 . . . . 1 1 . . 1 . . 3 Detach . | . . . . . . . . . . . . . Swap 22 | . 4 5 . . 3 1 1 1 . 2 1 4 Drop 23 | . 6 1 2 . 4 5 . 1 1 . . 3 Fire 265 | . 72 12 14 . 51 35 8 14 19 3 11 26 Melee 1 | . . . . . . . . . . 1 . . Ram . | . . . . . . . . . . . . . Kick 6 | . . . . . 5 1 . . . . . . Crush 2 | . 2 . . . . . . . . . . . Escape Stasis . | . . . . . . . . . . . . . Rewire . | . . . . . . . . . . . . . Trap . | . . . . . . . . . . . . . Miscellaneous 77 | . 27 6 . . 16 . . 4 10 5 . 9 Route ------- -11/Scrapyard -10/Materials (discovered 4 exits: *Mat x2 / *Min x2) -10/Mines (discovered 2 exits: *Mat / *Exi) -10/Exiles -9/Mines -8/Materials (discovered 3 exits: *Fac x3) -7/Factory -6/Factory -5/Factory -5/Upper Caves -5/Upper Caves -4/Factory -3/Research History --------- Turn | Location | Event 1 | -11/Scrapyard | Upgraded with Propulsion slot (x1) 1 | -11/Scrapyard | Upgraded with Utility slot (x1) 1 | -11/Scrapyard | Upgraded with Weapon slot (x1) 2 | -11/Scrapyard | Met Revision 17 6 | -11/Scrapyard | Discovered new exit (range 16) 69 | -11/Scrapyard | Entered Materials 157 | -10/Materials | Discovered new exit (range 10) 257 | -10/Materials | Discovered new exit (range 14) 308 | -10/Materials | Build established: Mutant 378 | -10/Materials | Identified exit to Mines 724 | -10/Materials | Reached level 2 868 | -10/Materials | Discovered new exit (range 12) 1138 | -10/Materials | Discovered new exit (range 14) 1337 | -10/Materials | Core integrity fell below 50% 1469 | -10/Materials | Identified exit to Materials 1579 | -10/Materials | Entered Mines 1581 | -10/Mines | Reached level 3 1626 | -10/Mines | Met a Derelict bent on vengeance 1682 | -10/Mines | Identified exit to Exiles 1731 | -10/Mines | Found the Drone Emporium 1890 | -10/Mines | Discovered exit to Materials (range 6) 2021 | -10/Mines | Entered Exiles 2060 | -10/Exiles | Met 8R-AWN 2087 | -10/Exiles | Met EX-HEX 2132 | -10/Exiles | Met EX-BIN 2153 | -10/Exiles | Aligned with FarCom system 2154 | -10/Exiles | Given EX-Vault access code 2191 | -10/Exiles | Opened EX-Vault 2256 | -10/Exiles | Exiles lab attacked by MAIN.C 2323 | -10/Exiles | Found YOLO Cannon 2370 | -10/Exiles | Reached level 4 2447 | -10/Exiles | Reached level 5 2497 | -10/Exiles | Destroyed 20 combat bots 2514 | -10/Exiles | Discovered new exit (range 14) 2531 | -10/Exiles | Identified exit to Mines 2533 | -10/Exiles | Left Exiles lab with YOLO Cannon 2533 | -10/Exiles | Entered Mines 2577 | -9/Mines | Assisted by bots powering up and referring to "LRC-V3" 2619 | -9/Mines | Assembled infested the area 2624 | -9/Mines | Assisted by a Guerilla fighting off Assembled 2685 | -9/Mines | YI-UF0 nonchalantly dropped a Grenade Launcher on the ground 2781 | -9/Mines | Learned Materials non-interactive machine intel 2819 | -9/Mines | Build established: Skirmisher 2996 | -9/Mines | Received a Mining Laser from a helpful Derelict 3291 | -9/Mines | Discovered new exit (range 10) 3312 | -9/Mines | Identified exit to Materials 3315 | -9/Mines | Entered Materials 3315 | -8/Materials | Accompanied by 3 allies 3316 | -8/Materials | Loaded intel: 33 non-interactive machine locations 3316 | -8/Materials | Core integrity fell below 50% 3317 | -8/Materials | Reached level 6 3454 | -8/Materials | Reached level 7 3462 | -8/Materials | Upgraded with Weapon slot (x1) 3610 | -8/Materials | Discovered new exit (range 13) 3751 | -8/Materials | Identified exit to Factory 3769 | -8/Materials | Reached level 8 3791 | -8/Materials | Upgraded with Utility slot (x2) 4430 | -8/Materials | Discovered exit to Factory (range 9) 4777 | -8/Materials | Reached level 9 4931 | -8/Materials | Discovered exit to Factory (range 16) 5310 | -8/Materials | Repaired Broken Titanium Leg 5315 | -8/Materials | First assault squad dispatched 5396 | -8/Materials | Entered Factory 5397 | -7/Factory | Core integrity fell below 50% 5398 | -7/Factory | Reached level 10 5583 | -7/Factory | Reached level 11 6164 | -7/Factory | Core integrity fell below 20% 6242 | -7/Factory | Build established: Hacker-Skirmisher 6386 | -7/Factory | Reached level 12 6732 | -7/Factory | Reached level 13 6756 | -7/Factory | Discovered new exit (range 9) 6776 | -7/Factory | Identified exit to Factory 6778 | -7/Factory | Entered another Factory area 6779 | -6/Factory | Core integrity fell below 50% 6780 | -6/Factory | Reached level 14 6951 | -6/Factory | Discovered new exit (range 17) 6982 | -6/Factory | Identified exit to Factory 6984 | -6/Factory | Entered another Factory area 6984 | -5/Factory | Discovered new exit (range 9) 6985 | -5/Factory | Core integrity fell below 50% 6986 | -5/Factory | Reached level 15 7000 | -5/Factory | Identified exit to Upper Caves 7197 | -5/Factory | Identified exit to DSF 7284 | -5/Factory | First assault squad dispatched 7380 | -5/Factory | Reached level 16 7493 | -5/Factory | Entered Upper Caves 7495 | -5/Upper Caves | Reached level 17 7546 | -5/Upper Caves | Destroyed 9 combat bots 7567 | -5/Upper Caves | Reached level 18 7643 | -5/Upper Caves | Learned Factory stockpile data 7790 | -5/Upper Caves | Build established: Hacker-Gunner 8637 | -5/Upper Caves | Encountered a Warlord checkpoint 8642 | -5/Upper Caves | Discovered new exit (range 13) 8665 | -5/Upper Caves | Identified exit to Upper Caves 8963 | -5/Upper Caves | Entered another Upper Caves area 8965 | -5/Upper Caves | Reached level 19 9186 | -5/Upper Caves | Learned Factory emergency access door positions 9217 | -5/Upper Caves | Learned Factory non-interactive machine intel 9631 | -5/Upper Caves | Discovered new exit (range 6) 9644 | -5/Upper Caves | Identified exit to Factory 9646 | -5/Upper Caves | Entered Factory 9647 | -4/Factory | Core integrity fell below 50% 9648 | -4/Factory | Reached level 20 9649 | -4/Factory | Loaded intel: 194 non-interactive machine locations 9953 | -4/Factory | Build established: Hacker-Skirmisher 10482 | -4/Factory | Reached level 21 10491 | -4/Factory | Discovered new exit (range 15) 10522 | -4/Factory | Identified exit to Research 10524 | -4/Factory | Entered Research 10525 | -3/Research | Core integrity fell below 50% 10526 | -3/Research | Reached level 22 10828 | -3/Research | Reached level 23 10968 | -3/Research | YOLO Cannon suddenly exploded 10969 | -3/Research | Core integrity fell below 20% 10999 | -3/Research | Lost 4 parts (1n1u2w) 11107 | -3/Research | Reached level 24 11182 | -3/Research | Destroyed by H-77 Assassin with Coil Gun Last Messages --------------- 11160_ U-05 Engineer lays Concrete. 11164_ Slug penetrates O-32 Director. 11164_ Destroyed Imp. System Restoration Module. 11165_ U-05 Engineer lays Concrete. 11166_ U-05 Engineer builds a Wall. 11166_ U-05 Engineer lays Concrete. 11173_ System corrupted: FCS attempts to trigger Helical Railgun. 11173_ System corrupted: Helical Railgun misfires. 11173_ U-05 Engineer lays Concrete. 11173_ U-05 Engineer builds a Wall. 11174_ ALERT: Rogue bot located, Programmers report to Research Zone 3F. 11174_ U-05 Engineer lays Concrete. 11176_ U-05 Engineer builds a Wall. 11176_ U-05 Engineer lays Concrete. 11178_ U-05 Engineer builds a Wall. 11178_ U-05 Engineer lays Concrete. 11179_ Slug penetrates K-01 Serf. 11179_ K-01 Serf destroyed. 11180_ U-05 Engineer builds a Door. 11182_ Penetrated by Slug. Map ----- +----------------------------------------------------+ | ?????????????????????????????????????????????????? | | ?????????????????????????????????????????????????? | | ?????????????????????????????????????????????????? | | ?????????????????????????????????????????????????? | | ?????????????????????????????????????????????????? | | ?????????????????????????????????????????????????? | | ????????????? ??????????????????????????????????? | | ???????????? #????????????????????????????????? | | ???????????#?? #????????????????????????????????? | | ???????????# #????????????????????????????????? | | ???????????# #????????????????????????????????? | | ???????????+ #????????????????????????????????? | | ???????????# ###??????##??????? #???????????? | | ???????????# # ?? #?????? #???????????? | | ???????????# #! #?????h #???????????? | | ???????????# # """"" #????? #???????????? | | ???????????# # """"" #???? h #???????????? | | ############ # """"" #???? g #???????????? | | # #! ##?? #???????????? | | # # #? g #???????????? | | ] # # ## ?????????????? | | #;#+######## k########???????? | | # % ggk ???????? | | +u k % ??????? | | "" ??????? | | """ u @ ??????? | | """ ####### ## ####???????????? | | """ ? T## """T""" !#???????????? | | # ## """ """ #???????????? | | # ### #???????????? | | ###+"####### ?#?# """ #???????????? | | # # # ### """ A #???????????? | | # + " # # """ #???????????? | | ! T # " #???????????? | | # # # #???????????? | | # # # # ######## # ## ##########????? | | ####### % #????? | | ??????# # ? #????? | | ??????# # ###### | | ??????# # ? [ # | | ??????################" ######"### # | | ????????????????##???# ##[ """# # """ | | ?????????????????????## #=%* = ?# # """ | | ??????????#########???# ?# ! # # """ | | ?????????? ???## # # / # | | ?????????? ?????### # # + | | ?????????? ! ??????# + """ # # """ | | ???????#?? ?????# # """ # # """ | | ???????# #????# # """ # #[ """ | | ???????# """ """ #????# # [ # # | +----------------------------------------------------+ Best States ------------- Heat Dissipation 97 Energy Generation 19 Energy Capacity 310 Matter Stores 300 Matter Capacity 300 Sight Range 18 Robot Scan Range 26 Terrain Scan Density 10 Armor Coverage 600 Resistance: TH 20 Power Shielding 66 Weapon Shielding 33 Evasion (%) 55 Targeting Accuracy 6 Recoil Reduction 2 Offensive Hacking 20 Item Schematics ----------------- Hacking Suite | -8/Materials | Scanalyzed Enh. Nova Cannon | -3/Research | Hacked Robot Schematics ------------------ None Fabricated ------------ Nothing Alien Tech Used ----------------- None Achievements -------------- Hard Hitter Killing Spree Remodeling Challenges ------------ None RPGLIKE | -11 -10 -10 -10 -9 -8 -7 -6 -5 -5 -5 -4 -3 --------- Run | Yrd Mat Min Exi Min Mat Fac Fac Fac Upp Upp Fac Res Levels Raised 23 | . 1 1 2 . 4 4 1 2 2 1 2 3 XP Earned 37806 | 3000 2695 1425 2226 500 6439 4943 2189 3261 2850 1100 2845 4333 XP Spent 35920 | 3000 1450 1300 3150 . 5950 5975 1400 3230 2640 1455 3205 3165 Upgrades 104 | 10 6 2 23 . 10 25 2 9 6 3 4 4 Propulsion Slot 1 | 1 . . . . . . . . . . . . Utility Slot 3 | 1 . . . . 2 . . . . . . . Weapon Slot 2 | 1 . . . . 1 . . . . . . . Core Integrity 50 | . . . 21 . . 10 . 8 6 3 1 1 Heat Dissipation 12 | . . . . . . 11 . 1 . . . . Inventory Capacity 3 | 2 . . . . 1 . . . . . . . Sight Range 2 | . . . . . . 1 1 . . . . . Sensor Range 13 | 4 4 . 2 . . 2 . . . . . 1 Ranged Accuracy 9 | 1 1 2 . . . . . . . . 3 2 TH Resistance % 4 | . . . . . 4 . . . . . . . KI Damage % 1 | . 1 . . . . . . . . . . . TH Damage % 4 | . . . . . 2 1 1 . . . . . Protomatter Created 2010 | . 352 42 251 . 416 28 31 78 317 93 145 257 Integrity Restored 1563 | . 492 126 . . 342 . . 84 201 108 . 210 Core 1539 | . 468 126 . . 342 . . 84 201 108 . 210 Parts 24 | . 24 . . . . . . . . . . . Protomatter Decayed 558 | . 167 . 263 7 77 . . . . . 44 . Game ------ Seed TargetSmartbombBlaster Manual? 0 Play Time 01:04:46 Cumulative 34.7 hours Start 2025.03.24 @ 17:11:49 End 2025.03.24 @ 18:39:22 Sessions 1 Manual Loads 0 Difficulty Rogue Special Mode Winter2019/RPGLIKE Game No. 59 Rogue 59 Adventurer 0 Explorer 0 Win Type - Total 0 Types 0/0/0/0/0/0/0/0/0 Lore% 13 Gallery% 26 Achievement% 29 Wizard Run 0 Options --------- Layout 0 ASCII 0 Keyboard 0 Movement Mouse Keybinds 0 Fullscreen 1 Font 24/Smallcaps Map View 76x56 Zoom Use 0% Tactical HUD 1 Map Filters NONE Filters NONE Steam 1 RUN: 9ba906fd-41c1-43e3-bbd9-47281881e2ee